fUST/lending_fUST_20250226
["ID","MTS","AMOUNT","RATE_DAILY","PERIOD"]
[354503194,1740541867466,-500.0,0.00040547,2]
[354503195,1740541867475,-990.32,0.00040547,2]
[354503196,1740541867484,-500.0,0.00040547,2]
[354503197,1740541867494,-500.0,0.00040547,2]
[354503198,1740541867503,-789.78,0.00040547,2]
[354503199,1740541867512,-500.0,0.00040547,2]
[354503200,1740541867522,-1500.75,0.00040547,2]
[354503201,1740541867531,-500.0,0.00040547,2]
[354503202,1740541867541,-500.0,0.00040547,2]
[354503203,1740541867550,-500.0,0.00040547,2]
[354503204,1740541867559,-500.0,0.00040547,2]
[354503205,1740541867569,-524.67,0.00040547,2]
[354503206,1740541867578,-500.0,0.00040547,2]
[354503207,1740541867588,-500.0,0.00040547,2]
[354503208,1740541867598,-500.0,0.00040547,2]
[354503209,1740541867607,-645.84,0.00040547,2]
[354503210,1740541867618,-667.29,0.00040547,2]
[354503211,1740541867627,-500.0,0.00040547,2]
[354503212,1740541867636,-500.0,0.00040547,2]
[354503213,1740541867646,-697.46,0.00040547,2]
[354503214,1740541867655,-551.75,0.00040547,2]
[354503215,1740541867665,-611.81,0.00040547,2]
[354503216,1740541867674,-500.0,0.00040547,2]
[354503217,1740541867684,-500.0,0.00040547,2]
[354503218,1740541867693,-500.0,0.00040547,2]
[354503219,1740541867703,-500.0,0.00040547,2]
[354503220,1740541867712,-500.0,0.00040547,2]
[354503221,1740541867721,-500.0,0.00040547,2]
[354503222,1740541867731,-1093.44,0.00040547,2]
[354503223,1740541867742,-500.0,0.00040547,2]
[354503224,1740541867751,-655.21,0.00040547,2]
[354503225,1740541867760,-500.0,0.00040547,2]
[354503226,1740541867770,-500.0,0.00040547,2]
[354503227,1740541867780,-500.0,0.00040547,2]
[354503228,1740541867790,-500.0,0.00040547,2]
[354503229,1740541867799,-500.0,0.00040547,2]
[354503230,1740541867811,-1093.29,0.00040547,2]
[354503231,1740541867821,-1270.97,0.00040547,2]
[354503232,1740541867831,-639.54,0.00040547,2]
[354503233,1740541867841,-500.0,0.00040547,2]
[354503234,1740541867852,-1985.84,0.00040547,2]
[354503235,1740541867861,-500.0,0.00040547,2]
[354503236,1740541867871,-553.98,0.00040547,2]
[354503237,1740541867881,-500.0,0.00040547,2]
[354503238,1740541867890,-500.0,0.00040547,2]
[354503239,1740541867899,-1474.78,0.00040547,2]
[354503240,1740541867908,-500.0,0.00040547,2]
[354503241,1740541867918,-500.0,0.00040547,2]
[354503242,1740541867927,-2148.66,0.00040547,2]
[354503243,1740541867937,-500.0,0.00040547,2]
[354503244,1740541867946,-500.0,0.00040547,2]
[354503245,1740541867956,-1062.96,0.00040547,2]
[354503246,1740541867965,-500.0,0.00040547,2]
[354503247,1740541867974,-1566.7,0.00040547,2]
[354503248,1740541867983,-2271.73,0.00040547,2]
[354503249,1740541867993,-910.04,0.00040547,2]
[354503250,1740541868002,-808.12,0.00040547,2]
[354503251,1740541868011,-660.19,0.00040547,2]
[354503252,1740541868020,-1062.27,0.00040547,2]
[354503253,1740541868030,-761.72,0.00040547,2]
[354503254,1740541868039,-587.82,0.00040547,2]
[354503255,1740541868049,-2348.87,0.00040547,2]
[354503256,1740541868059,-500.0,0.00040547,2]
[354503257,1740541868068,-1082.88,0.00040547,2]
[354503258,1740541868078,-1083.65,0.00040547,2]
[354503259,1740541868087,-576.19153001,0.00040547,2]
[354503260,1740541868095,-1180.85,0.00040547,2]
[354503261,1740541868105,-588.21,0.00040547,2]
[354503262,1740541868114,-500.0,0.00040547,2]
[354503263,1740541868124,-500.0,0.00040547,2]
[354503264,1740541868133,-500.0,0.00040547,2]
[354503265,1740541868143,-905.71,0.00040547,2]
[354503266,1740541868153,-500.0,0.00040547,2]
[354503267,1740541868162,-522.98,0.00040547,2]
[354503268,1740541868171,-916.92,0.00040547,120]
[354503269,1740541868181,-594.42,0.00040547,2]
[354503270,1740541868189,-500.0,0.00040547,2]
[354503271,1740541868198,-940.15,0.00040547,2]
[354503272,1740541868207,-478.81721782,0.00040547,2]
[354503273,1740541868216,-1845.61,0.00040547,2]
[354503274,1740541868225,-850.18,0.00040547,2]
[354503275,1740541868235,-566.29,0.00040547,2]
[354503276,1740541868244,-1025.57,0.00040547,2]
[354503277,1740541868253,-634.95,0.00040547,2]
[354503278,1740541868263,-1528.03,0.00040547,2]
[354503279,1740541868272,-1167.0,0.00040547,2]
[354503280,1740541868281,-666.28,0.00040547,2]
[354503281,1740541868290,-1631.72,0.00040547,2]
[354503282,1740541868300,-368.65272449,0.00040547,2]
[354503283,1740541868309,-524.39,0.00040547,2]
[354503284,1740541868321,-500.0,0.00040547,2]
[354503285,1740541868332,-500.0,0.00040547,2]
[354503286,1740541868342,-550.66,0.00040547,2]
[354503287,1740541868351,-776.92,0.00040547,2]
[354503288,1740541868360,-500.0,0.00040547,2]
[354503289,1740541868370,-540.59,0.00040547,2]
[354503290,1740541868379,-500.0,0.00040547,2]
[354503291,1740541868388,-500.0,0.00040547,2]
[354503292,1740541868398,-1099.25,0.00040547,2]
[354503293,1740541868407,-500.0,0.00040547,2]
[354503294,1740541868417,-531.21,0.00040547,2]
[354503295,1740541868426,-653.07,0.00040547,2]
[354503296,1740541868436,-500.0,0.00040547,2]
[354503297,1740541868447,-675.52,0.00040547,2]
[354503298,1740541868457,-2325.51,0.00040547,2]
[354503299,1740541868467,-1778.36,0.00040547,2]
[354503300,1740541868476,-500.0,0.00040547,2]
[354503301,1740541868485,-2484.09,0.00040547,2]
[354503302,1740541868494,-1225.49,0.00040547,2]
[354503303,1740541868503,-998.16,0.00040547,2]
[354503304,1740541868524,-2602.84,0.00040547,2]
[354503305,1740541868535,-565.19,0.00040547,2]
[354503306,1740541868545,-500.0,0.00040547,2]
[354503307,1740541868554,-2764.65,0.00040547,2]
[354503308,1740541868565,-1783.36,0.00040547,2]
[354503309,1740541868575,-6750.26,0.00040547,2]
[354503310,1740541868586,-500.0,0.00040547,2]
[354503311,1740541868596,-5267.08,0.00040547,2]
[354503312,1740541868606,-1830.68,0.00040547,2]
[354503313,1740541868616,-500.0,0.00040547,2]
[354503314,1740541868627,-2033.02,0.00040547,2]
[354503315,1740541868637,-3800.0,0.00040547,120]
[354503316,1740541868647,-500.0,0.00040547,2]
[354503317,1740541868656,-500.0,0.00040547,2]
[354503318,1740541868666,-8525.94,0.00040547,2]
[354503319,1740541868675,-167654.2,0.00040547,2]
[354503320,1740541868685,-2404.5,0.00040547,2]
[354503321,1740541868695,-500.0,0.00040547,2]
[354503322,1740541868705,-986.53,0.00040547,2]
[354503323,1740541868715,-18440.98,0.00040547,2]
[354503324,1740541868726,-527.39,0.00040547,2]
[354503325,1740541868738,-626.84,0.00040547,2]
[354503326,1740541868748,-500.0,0.00040547,2]
[354503327,1740541868758,-2187.34,0.00040547,2]
[354503328,1740541868768,-2420.23,0.00040547,2]
[354503329,1740541868779,-3527.91,0.00040547,2]
[354503330,1740541868789,-500.0,0.00040547,2]
[354503331,1740541868799,-500.0,0.00040547,2]
[354503332,1740541868809,-635.5,0.00040547,2]
[354503333,1740541868820,-1252.18,0.00040547,2]
[354503334,1740541868830,-500.0,0.00040547,2]
[354503335,1740541868840,-1909.8,0.00040547,2]
[354503336,1740541868850,-500.0,0.00040547,2]
[354503337,1740541868860,-500.0,0.00040547,2]
[354503338,1740541868871,-1960.26,0.00040547,2]
[354503339,1740541868881,-1019.95,0.00040547,2]
[354503340,1740541868891,-3063.72,0.00040547,2]
[354503341,1740541868901,-1225.56,0.00040547,2]
[354503342,1740541868911,-775.34,0.00040547,2]
[354503343,1740541868922,-500.0,0.00040547,2]
[354503344,1740541868932,-1904.32,0.00040547,2]
[354503345,1740541868942,-573.2,0.00040547,2]
[354503346,1740541868952,-785.27,0.00040547,2]
[354503347,1740541868962,-1033.75,0.00040547,2]
[354503348,1740541868972,-637.72,0.00040547,2]
[354503349,1740541868981,-616.19,0.00040547,2]
[354503350,1740541868991,-2927.49,0.00040547,2]
[354503351,1740541869001,-500.0,0.00040547,2]
[354503352,1740541869011,-14460.9,0.00040547,2]
[354503353,1740541869020,-1115.55,0.00040547,2]
[354503354,1740541869030,-1462.25,0.00040547,2]
[354503355,1740541869039,-571.33,0.00040547,2]
[354503356,1740541869049,-500.0,0.00040547,2]
[354503357,1740541869059,-639.93,0.00040547,2]
[354503358,1740541869068,-743.61,0.00040547,2]
[354503359,1740541869078,-500.0,0.00040547,2]
[354503360,1740541869088,-500.0,0.00040547,2]
[354503361,1740541869097,-500.0,0.00040547,2]
[354503362,1740541869109,-578.75,0.00040547,2]
[354503363,1740541869119,-2827.42,0.00040547,2]
[354503364,1740541869130,-5124.98,0.00040547,2]
[354503365,1740541869141,-500.0,0.00040547,2]
[354503366,1740541869152,-500.0,0.00040547,2]
[354503367,1740541869162,-500.0,0.00040547,2]
[354503368,1740541869171,-1239.32,0.00040547,2]
[354503369,1740541869181,-500.0,0.00040547,2]
[354503370,1740541869191,-26314.25,0.00040547,2]
[354503371,1740541869200,-11193.35,0.00040547,2]
[354503372,1740541869210,-500.0,0.00040547,2]
[354503373,1740541869220,-4997.59,0.00040547,2]
[354503374,1740541869230,-500.0,0.00040547,2]
[354503375,1740541869239,-1060.56,0.00040547,2]
[354503376,1740541869248,-500.0,0.00040547,2]
[354503377,1740541869258,-500.0,0.00040547,2]
[354503378,1740541869268,-500.0,0.00040547,2]
[354503379,1740541869277,-941.31,0.00040547,2]
[354503380,1740541869287,-500.0,0.00040547,2]
[354503381,1740541869296,-17506.28,0.00040547,2]
[354503382,1740541869305,-2390.39,0.00040547,2]
[354503383,1740541869315,-500.0,0.00040547,2]
[354503384,1740541869325,-3004.03,0.00040547,2]
[354503385,1740541869335,-500.0,0.00040547,2]
[354503386,1740541869344,-1782.91,0.00040547,2]
[354503387,1740541869354,-500.0,0.00040547,2]
[354503388,1740541869364,-500.0,0.00040547,2]
[354503389,1740541869374,-1794.47,0.00040547,2]
[354503390,1740541869384,-623.66,0.00040547,2]
[354503391,1740541869394,-1392.27,0.00040547,2]
[354503392,1740541869404,-575.68,0.00040547,2]
[354503393,1740541869414,-534.28,0.00040547,2]
[354503394,1740541869423,-5602.35,0.00040547,2]
[354503395,1740541869433,-2753.33,0.00040547,2]
[354503396,1740541869442,-700.69,0.00040547,2]
[354503397,1740541869452,-1440.51,0.00040547,2]
[354503398,1740541869462,-785.44,0.00040547,2]
[354503399,1740541869472,-552.46,0.00040547,2]
[354503400,1740541869481,-500.0,0.00040547,2]
[354503401,1740541869491,-500.0,0.00040547,2]
[354503402,1740541869500,-734.87,0.00040547,2]
[354503403,1740541869510,-3053.22,0.00040547,2]
[354503404,1740541869520,-1081.35,0.00040547,2]
[354503405,1740541869530,-3762.21,0.00040547,2]
[354503406,1740541869539,-13178.26,0.00040547,2]
[354503407,1740541869549,-500.0,0.00040547,2]
[354503408,1740541869558,-843.19,0.00040547,2]
[354503409,1740541869568,-1787.91,0.00040547,2]
[354503410,1740541869578,-500.0,0.00040547,2]
[354503411,1740541869588,-834.45,0.00040547,2]
[354503412,1740541869598,-5245.51,0.00040547,2]
[354503413,1740541869607,-1168.34,0.00040547,2]
[354503414,1740541869618,-500.0,0.00040547,2]
[354503415,1740541869627,-8391.51,0.00040547,2]
[354503416,1740541869637,-500.0,0.00040547,2]
[354503417,1740541869647,-1193.47,0.00040547,2]
[354503418,1740541869657,-9125.91,0.00040547,2]
[354503419,1740541869667,-857.27,0.00040547,2]
[354503420,1740541869677,-500.0,0.00040547,2]
[354503421,1740541869687,-500.0,0.00040547,2]
[354503422,1740541869696,-300.0,0.00040547,120]
[354503423,1740541869706,-500.0,0.00040547,2]
[354503424,1740541869715,-5628.63,0.00040547,2]
[354503425,1740541869725,-926.06,0.00040547,2]
[354503426,1740541869739,-500.0,0.00040547,2]
[354503427,1740541869749,-500.0,0.00040821,2]
[354503428,1740541869759,-548.16,0.00040821,2]
[354503429,1740541869768,-500.0,0.00040821,2]
[354503430,1740541869779,-611.99,0.00040821,2]
[354503431,1740541869789,-890.56,0.00040821,2]
[354503432,1740541869799,-500.0,0.00040821,2]
[354503433,1740541869810,-990.32,0.00040821,2]
[354503434,1740541869820,-500.0,0.00040821,2]
[354503435,1740541869830,-500.0,0.00040821,2]
[354503436,1740541869839,-789.78,0.00040821,2]
[354503437,1740541869849,-500.0,0.00040821,2]
[354503438,1740541869859,-1500.75,0.00040821,2]
[354503439,1740541869869,-500.0,0.00040821,2]
[354503440,1740541869879,-500.0,0.00040821,2]
[354503441,1740541869888,-498.53315168,0.00040821,2]
[354503442,1740541869898,-500.0,0.00040821,2]
[354503443,1740541869908,-524.67,0.00040821,2]
[354503444,1740541869918,-500.0,0.00040821,2]
[354503445,1740541869928,-500.0,0.00040821,2]
[354503446,1740541869937,-500.0,0.00040821,2]
[354503447,1740541869947,-645.84,0.00040821,2]
[354503448,1740541869958,-667.29,0.00040821,2]
[354503449,1740541869967,-500.0,0.00040821,2]
[354503450,1740541869977,-615.95703442,0.00040821,2]
[354503451,1740541869986,-697.46,0.00040821,2]
[354503452,1740541869996,-551.75,0.00040821,2]
[354503453,1740541870005,-611.81,0.00040821,2]
[354503454,1740541870015,-500.0,0.00040821,2]
[354503455,1740541870029,-506.63098693,0.00040821,2]
[354503456,1740541870039,-500.0,0.00040821,2]
[354503457,1740541870048,-500.0,0.00040821,2]
[354503458,1740541870060,-500.0,0.00040821,2]
[354503459,1740541870070,-500.0,0.00040821,2]
[354503460,1740541870080,-1093.44,0.00040821,2]
[354503461,1740541870090,-500.0,0.00040821,2]
[354503462,1740541870103,-655.21,0.00040821,2]
[354503463,1740541870115,-500.0,0.00040821,2]
[354503464,1740541870125,-500.0,0.00040821,2]
[354503465,1740541870135,-500.0,0.00040821,2]
[354503466,1740541870146,-500.0,0.00040821,2]
[354503467,1740541870156,-500.0,0.00040821,2]
[354503468,1740541870166,-1093.29,0.00040821,2]
[354503469,1740541870176,-1270.97,0.00040821,2]
[354503470,1740541870186,-639.54,0.00040821,2]
[354503471,1740541870196,-372.8072928,0.00040821,2]
[354503472,1740541870206,-1985.84,0.00040821,2]
[354503473,1740541870216,-500.0,0.00040821,2]
[354503474,1740541870225,-553.98,0.00040821,2]
[354503475,1740541870235,-500.0,0.00040821,2]
[354503476,1740541870245,-500.0,0.00040821,2]
[354503477,1740541870255,-1474.78,0.00040821,2]
[354503478,1740541870264,-500.0,0.00040821,2]
[354503479,1740541870274,-500.0,0.00040821,2]
[354503480,1740541870284,-2148.66,0.00040821,2]
[354503481,1740541870293,-500.0,0.00040821,2]
[354503482,1740541870303,-500.0,0.00040821,2]
[354503483,1740541870313,-1062.96,0.00040821,2]
[354503484,1740541870323,-500.0,0.00040821,2]
[354503485,1740541870333,-1566.7,0.00040821,2]
[354503486,1740541870342,-2271.73,0.00040821,2]
[354503487,1740541870553,-910.04,0.00040821,2]
[354503488,1740541870565,-808.12,0.00040821,2]
[354503489,1740541870574,-660.19,0.00040821,2]
[354503490,1740541870585,-1062.27,0.00040821,2]
[354503491,1740541870594,-761.72,0.00040821,2]
[354503492,1740541870604,-587.82,0.00040821,2]
[354503493,1740541870615,-2348.87,0.00040821,2]
[354503494,1740541870625,-500.0,0.00040821,2]
[354503495,1740541870634,-1082.88,0.00040821,2]
[354503496,1740541870644,-1083.65,0.00040821,2]
[354503497,1740541870654,-1180.85,0.00040821,2]
[354503498,1740541870663,-588.21,0.00040821,2]
[354503499,1740541870673,-500.0,0.00040821,2]
[354503500,1740541870682,-518.44212687,0.00040821,2]
[354503501,1740541870691,-295.45353942,0.00040821,2]
[354503502,1740541870701,-905.71,0.00040821,2]
[354503503,1740541870710,-500.0,0.00040821,2]
[354503504,1740541870720,-522.98,0.00040821,2]
[354503505,1740541870731,-916.92,0.00040821,120]
[354503506,1740541870742,-594.42,0.00040821,2]
[354503507,1740541870752,-500.0,0.00040821,2]
[354503508,1740541870762,-940.15,0.00040821,2]
[354503509,1740541870771,-1845.61,0.00040821,2]
[354503510,1740541870781,-850.18,0.00040821,2]
[354503511,1740541870791,-566.29,0.00040821,2]
[354503512,1740541870800,-1025.57,0.00040821,2]
[354503513,1740541870810,-634.95,0.00040821,2]
[354503514,1740541870820,-1528.03,0.00040821,2]
[354503515,1740541870830,-1167.0,0.00040821,2]
[354503516,1740541870839,-666.28,0.00040821,2]
[354503517,1740541870848,-1631.72,0.00040821,2]
[354503518,1740541870858,-524.39,0.00040821,2]
[354503519,1740541870867,-500.0,0.00040821,2]
[354503520,1740541870876,-500.0,0.00040821,2]
[354503521,1740541870886,-550.66,0.00040821,2]
[354503522,1740541870896,-776.92,0.00040821,2]
[354503523,1740541870906,-500.0,0.00040821,2]
[354503524,1740541870915,-540.59,0.00040821,2]
[354503525,1740541870924,-500.0,0.00040821,2]
[354503526,1740541870934,-500.0,0.00040821,2]
[354503527,1740541870943,-1099.25,0.00040821,2]
[354503528,1740541870953,-500.0,0.00040821,2]
[354503529,1740541870963,-531.21,0.00040821,2]
[354503530,1740541870973,-653.07,0.00040821,2]
[354503531,1740541870982,-500.0,0.00040821,2]
[354503532,1740541870992,-675.52,0.00040821,2]
[354503533,1740541871002,-2325.51,0.00040821,2]
[354503534,1740541871011,-1778.36,0.00040821,2]
[354503535,1740541871021,-500.0,0.00040821,2]
[354503536,1740541871030,-2484.09,0.00040821,2]
[354503537,1740541871040,-1225.49,0.00040821,2]
[354503538,1740541871049,-998.16,0.00040821,2]
[354503539,1740541871059,-2602.84,0.00040821,2]
[354503540,1740541871068,-565.19,0.00040821,2]
[354503541,1740541871078,-500.0,0.00040821,2]
[354503542,1740541871088,-2764.65,0.00040821,2]
[354503543,1740541871097,-1783.36,0.00040821,2]
[354503544,1740541871107,-6750.26,0.00040821,2]
[354503545,1740541871117,-500.0,0.00040821,2]
[354503546,1740541871127,-5267.08,0.00040821,2]
[354503547,1740541871136,-1830.68,0.00040821,2]
[354503548,1740541871146,-500.0,0.00040821,2]
[354503549,1740541871155,-2033.02,0.00040821,2]
[354503550,1740541871165,-3800.0,0.00040821,120]
[354503551,1740541871174,-500.0,0.00040821,2]
[354503552,1740541871184,-500.0,0.00040821,2]
[354503553,1740541871193,-8525.94,0.00040821,2]
[354503554,1740541871202,-167654.2,0.00040821,2]
[354503555,1740541871212,-2404.5,0.00040821,2]
[354503556,1740541871221,-500.0,0.00040821,2]
[354503557,1740541871231,-986.53,0.00040821,2]
[354503558,1740541871240,-18440.98,0.00040821,2]
[354503559,1740541871250,-527.39,0.00040821,2]
[354503560,1740541871259,-626.84,0.00040821,2]
[354503561,1740541871269,-524.73562005,0.00040821,2]
[354503562,1740541871278,-2187.34,0.00040821,2]
[354503563,1740541871297,-2420.23,0.00040821,2]
[354503564,1740541871309,-3527.91,0.00040821,2]
[354503565,1740541871318,-500.0,0.00040821,2]
[354503566,1740541871328,-500.0,0.00040821,2]
[354503567,1740541871337,-635.5,0.00040821,2]
[354503568,1740541871347,-1252.18,0.00040821,2]
[354503569,1740541871357,-410.03238767,0.00040821,2]
[354503570,1740541871367,-1909.8,0.00040821,2]
[354503571,1740541871376,-500.0,0.00040821,2]
[354503572,1740541871387,-500.0,0.00040821,2]
[354503573,1740541871400,-1960.26,0.00040821,2]
[354503574,1740541871409,-1019.95,0.00040821,2]
[354503575,1740541871419,-3063.72,0.00040821,2]
[354503576,1740541871428,-1225.56,0.00040821,2]
[354503577,1740541871438,-775.34,0.00040821,2]
[354503578,1740541871448,-500.0,0.00040821,2]
[354503579,1740541871457,-1904.32,0.00040821,2]
[354503580,1740541871467,-573.2,0.00040821,2]
[354503581,1740541871476,-785.27,0.00040821,2]
[354503582,1740541871486,-1033.75,0.00040821,2]
[354503583,1740541871496,-637.72,0.00040821,2]
[354503584,1740541871506,-616.19,0.00040821,2]
[354503585,1740541871515,-2927.49,0.00040821,2]
[354503586,1740541871524,-500.0,0.00040821,2]
[354503587,1740541871534,-14460.9,0.00040821,2]
[354503588,1740541871543,-1115.55,0.00040821,2]
[354503589,1740541871553,-1462.25,0.00040821,2]
[354503590,1740541871562,-571.33,0.00040821,2]
[354503591,1740541871572,-500.0,0.00040821,2]
[354503592,1740541871581,-639.93,0.00040821,2]
[354503593,1740541871591,-743.61,0.00040821,2]
[354503594,1740541871601,-500.0,0.00040821,2]
[354503595,1740541871610,-500.0,0.00040821,2]
[354503596,1740541871620,-500.0,0.00040821,2]
[354503597,1740541871630,-578.75,0.00040821,2]
[354503598,1740541871639,-2827.42,0.00040821,2]
[354503599,1740541871649,-5124.98,0.00040821,2]
[354503600,1740541871658,-500.0,0.00040821,2]
[354503601,1740541871668,-500.0,0.00040821,2]
[354503602,1740541871679,-500.0,0.00040821,2]
[354503603,1740541871688,-1239.32,0.00040821,2]
[354503604,1740541871699,-491.85327125,0.00040821,2]
[354503605,1740541871708,-26314.25,0.00040821,2]
[354503606,1740541871718,-11193.35,0.00040821,2]
[354503607,1740541871728,-500.0,0.00040821,2]
[354503608,1740541871742,-4997.59,0.00040821,2]
[354503609,1740541871751,-500.0,0.00040821,2]
[354503610,1740541871761,-1060.56,0.00040821,2]
[354503611,1740541871772,-500.0,0.00040821,2]
[354503612,1740541871787,-500.0,0.00040821,2]
[354503613,1740541871797,-500.0,0.00040821,2]
[354503614,1740541871806,-941.31,0.00040821,2]
[354503615,1740541871816,-500.0,0.00040821,2]
[354503616,1740541871827,-17506.28,0.00040821,2]
[354503617,1740541871836,-2390.39,0.00040821,2]
[354503618,1740541871846,-500.0,0.00040821,2]
[354503619,1740541871855,-3004.03,0.00040821,2]
[354503620,1740541871864,-500.0,0.00040821,2]
[354503621,1740541871874,-1782.91,0.00040821,2]
[354503622,1740541871884,-500.0,0.00040821,2]
[354503623,1740541871895,-500.0,0.00040821,2]
[354503624,1740541871905,-1794.47,0.00040821,2]
[354503625,1740541871915,-623.66,0.00040821,2]
[354503626,1740541871924,-1392.27,0.00040821,2]
[354503627,1740541871934,-575.68,0.00040821,2]
[354503628,1740541871943,-534.28,0.00040821,2]
[354503629,1740541871953,-5602.35,0.00040821,2]
[354503630,1740541871962,-2753.33,0.00040821,2]
[354503631,1740541871972,-700.69,0.00040821,2]
[354503632,1740541871981,-785.44,0.00040821,2]
[354503633,1740541871991,-552.46,0.00040821,2]
[354503634,1740541872000,-500.0,0.00040821,2]
[354503635,1740541872009,-500.0,0.00040821,2]
[354503636,1740541872019,-734.87,0.00040821,2]
[354503637,1740541872029,-3053.22,0.00040821,2]
[354503638,1740541872038,-1081.35,0.00040821,2]
[354503639,1740541872048,-3762.21,0.00040821,2]
[354503640,1740541872057,-13178.26,0.00040821,2]
[354503641,1740541872067,-500.0,0.00040821,2]
[354503642,1740541872076,-843.19,0.00040821,2]
[354503643,1740541872086,-1787.91,0.00040821,2]
[354503644,1740541872096,-500.0,0.00040821,2]
[354503645,1740541872105,-834.45,0.00040821,2]
[354503646,1740541872115,-5245.51,0.00040821,2]
[354503647,1740541872125,-1168.34,0.00040821,2]
[354503648,1740541872135,-500.0,0.00040821,2]
[354503649,1740541872144,-8391.51,0.00040821,2]
[354503650,1740541872154,-500.0,0.00040821,2]
[354503651,1740541872164,-1193.47,0.00040821,2]
[354503652,1740541872174,-9125.91,0.00040821,2]
[354503653,1740541872183,-857.27,0.00040821,2]
[354503654,1740541872193,-500.0,0.00040821,2]
[354503655,1740541872202,-500.0,0.00040821,2]
[354503656,1740541872212,-300.0,0.00040821,120]
[354503657,1740541872223,-500.0,0.00040821,2]
[354503658,1740541872234,-5628.63,0.00040821,2]
[354503659,1740541872245,-926.06,0.00040821,2]
[354503660,1740541872254,-500.0,0.00040821,2]
[354503661,1740541872264,-355.2534587,0.00040822,30]
[354503662,1740541872273,-358.9197605,0.00040822,30]
[354503663,1740541872283,-4709.91838571,0.00041,30]
[354503664,1740541872292,-399.155,0.00041021,2]
[354503665,1740541872302,-500.0,0.00041095,2]
[354503666,1740541872311,-548.16,0.00041095,2]
[354503667,1740541872321,-500.0,0.00041095,2]
[354503668,1740541872330,-611.99,0.00041095,2]
[354503669,1740541872339,-890.56,0.00041095,2]
[354503670,1740541872349,-500.0,0.00041095,2]
[354503671,1740541872358,-990.32,0.00041095,2]
[354503672,1740541872368,-500.0,0.00041095,2]
[354503673,1740541872377,-500.0,0.00041095,2]
[354503674,1740541872387,-789.78,0.00041095,2]
[354503675,1740541872396,-500.0,0.00041095,2]
[354503676,1740541872405,-1500.75,0.00041095,2]
[354503677,1740541872415,-500.0,0.00041095,2]
[354503678,1740541872424,-167.12019665,0.00041095,2]
[354503679,1740541872433,-500.0,0.00041095,2]
[354503680,1740541872443,-524.67,0.00041095,2]
[354503681,1740541872452,-500.0,0.00041095,2]
[354503682,1740541872461,-500.0,0.00041095,2]
[354503683,1740541872471,-500.0,0.00041095,2]
[354503684,1740541872480,-645.84,0.00041095,2]
[354503685,1740541872489,-667.29,0.00041095,2]
[354503686,1740541872498,-500.0,0.00041095,2]
[354503687,1740541872507,-697.46,0.00041095,2]
[354503688,1740541872517,-551.75,0.00041095,2]
[354503689,1740541872526,-611.81,0.00041095,2]
[354503690,1740541872535,-541.42556478,0.00041095,2]
[354503691,1740541872545,-500.0,0.00041095,2]
[354503692,1740541872555,-500.0,0.00041095,2]
[354503693,1740541872564,-500.0,0.00041095,2]